[Event "*** Titled Tuesday 3|2 Blitz"]
[Site "Chess.com"]
[Date "2015.08.04"]
[Round "2"]
[White "Cruel_Yaro"]
[Black "DeviatkinAndrey"]
[Result "0-1"]
[WhiteElo "2499"]
[BlackElo "2555"]
[TimeControl "180+2"]
[EndTime "11:52:23 PDT"]
[Termination "DeviatkinAndrey won by resignation"]

1. d4 {[%clk 0:03:01.9]} 1... d5 {[%clk 0:02:54.6]} 2. c4 {[%clk 0:03:02.2]}
2... c6 {[%clk 0:02:55.7]} 3. Nc3 {[%clk 0:03:02.5]} 3... e5 {[%clk 0:02:55.6]}
4. dxe5 {[%clk 0:02:53.4]} 4... d4 {[%clk 0:02:56.2]} 5. Ne4 {[%clk 0:02:54.1]}
5... Qa5+ {[%clk 0:02:56.7]} 6. Bd2 {[%clk 0:02:55.2]} 6... Qxe5 {[%clk
0:02:57.3]} 7. Ng3 {[%clk 0:02:56.2]} 7... Nf6 {[%clk 0:02:53.7]} 8. Nf3 {[%clk
0:02:56.9]} 8... Qc5 {[%clk 0:02:51]} 9. Rc1 {[%clk 0:02:49.5]} 9... Bg4 {[%clk
0:02:46.4]} 10. b4 {[%clk 0:02:41.6]} 10... Qd6 {[%clk 0:02:46.8]} 11. c5 {[%clk
0:02:34]} 11... Qd5 {[%clk 0:02:40.9]} 12. e4 {[%clk 0:02:23]} 12... dxe3 {[%clk
0:02:36.3]} 13. fxe3 {[%clk 0:02:23.5]} 13... b5 {[%clk 0:01:46.4]} 14. Be2
{[%clk 0:01:21.9]} 14... Be7 {[%clk 0:01:43.6]} 15. O-O {[%clk 0:01:21.3]} 15...
O-O {[%clk 0:01:43.3]} 16. Nd4 {[%clk 0:01:09.5]} 16... Bxe2 {[%clk 0:01:43.4]}
17. Qxe2 {[%clk 0:01:10.2]} 17... g6 {[%clk 0:01:32.8]} 18. Bc3 {[%clk
0:01:09.6]} 18... Ne4 {[%clk 0:01:18.6]} 19. Ba1 {[%clk 0:01:09.1]} 19... Nxg3
{[%clk 0:01:18.6]} 20. hxg3 {[%clk 0:01:07.2]} 20... Nd7 {[%clk 0:00:56.7]} 21.
e4 {[%clk 0:01:05.3]} 21... Qg5 {[%clk 0:00:56.1]} 22. Nxc6 {[%clk 0:00:58.2]}
22... Rae8 {[%clk 0:00:56.3]} 23. Rcd1 {[%clk 0:00:36.5]} 23... Nb8 {[%clk
0:00:33.2]} 24. Qb2 {[%clk 0:00:29.9]} 24... f6 {[%clk 0:00:33.6]} 25. Qb3+
{[%clk 0:00:29.3]} 25... Kg7 {[%clk 0:00:33.7]} 26. Nxb8 {[%clk 0:00:27.8]}
26... Rxb8 {[%clk 0:00:32.3]} 27. Rd7 {[%clk 0:00:28.3]} 27... Rf7 {[%clk
0:00:33.5]} 28. Rxe7 {[%clk 0:00:26.5]} 28... Rxe7 {[%clk 0:00:33.1]} 29. Bxf6+
{[%clk 0:00:25.3]} 29... Qxf6 {[%clk 0:00:34.2]} 30. Rxf6 {[%clk 0:00:26.3]}
30... Kxf6 {[%clk 0:00:35.3]} 31. Qf3+ {[%clk 0:00:26.1]} 31... Kg7 {[%clk
0:00:35.2]} 32. Qc3+ {[%clk 0:00:25.6]} 32... Kf7 {[%clk 0:00:33.4]} 33. c6
{[%clk 0:00:24.8]} 33... Rc8 {[%clk 0:00:33]} 34. Qc5 {[%clk 0:00:25.3]} 34...
Rec7 {[%clk 0:00:32.3]} 35. Qd5+ {[%clk 0:00:22.3]} 35... Ke7 {[%clk 0:00:26.3]}
36. Qe5+ {[%clk 0:00:20.9]} 36... Kf7 {[%clk 0:00:27.3]} 37. Qxb5 {[%clk
0:00:21.4]} 37... Rxc6 {[%clk 0:00:28.4]} 38. a4 {[%clk 0:00:21.4]} 38... h5
{[%clk 0:00:28.4]} 39. Qd5+ {[%clk 0:00:20.9]} 39... Ke7 {[%clk 0:00:26.9]} 40.
b5 {[%clk 0:00:21.2]} 40... Rc1+ {[%clk 0:00:26.8]} 41. Kh2 {[%clk 0:00:22]}
41... R8c5 {[%clk 0:00:24]} 42. Qb7+ {[%clk 0:00:22.2]} 42... Rc7 {[%clk
0:00:24.7]} 43. Qa6 {[%clk 0:00:23.3]} 43... Rf1 {[%clk 0:00:15.9]} 44. g4
{[%clk 0:00:14]} 44... h4 {[%clk 0:00:16.7]} 45. g5 {[%clk 0:00:09.2]} 45...
Rcc1 {[%clk 0:00:16.6]} 46. Kh3 {[%clk 0:00:10.4]} 46... Rf4 {[%clk 0:00:15.1]}
47. Qxa7+ {[%clk 0:00:10.8]} 47... Ke6 {[%clk 0:00:15.2]} 48. Qb6+ {[%clk
0:00:11.6]} 48... Ke5 {[%clk 0:00:15.6]} 49. Qb8+ {[%clk 0:00:12.4]} 49... Kxe4
{[%clk 0:00:16.4]} 50. Qe8+ {[%clk 0:00:12.6]} 50... Kf5 {[%clk 0:00:15.6]} 51.
Qd7+ {[%clk 0:00:13.5]} 51... Kxg5 {[%clk 0:00:16.1]} 52. Qd8+ {[%clk
0:00:13.9]} 52... Kf5 {[%clk 0:00:15.8]} 53. Kh2 {[%clk 0:00:09.1]} 53... g5
{[%clk 0:00:14.7]} 54. Qd5+ {[%clk 0:00:09.4]} 54... Kf6 {[%clk 0:00:13.9]} 55.
Qd6+ {[%clk 0:00:09.8]} 55... Kf5 {[%clk 0:00:15.2]} 56. Qd5+ {[%clk 0:00:10.6]}
56... Kf6 {[%clk 0:00:14.4]} 57. Qd8+ {[%clk 0:00:11.1]} 57... Kg6 {[%clk
0:00:14.2]} 58. Qg8+ {[%clk 0:00:12.1]} 58... Kf6 {[%clk 0:00:14.4]} 59. Qh8+
{[%clk 0:00:12.8]} 59... Kg6 {[%clk 0:00:14.8]} 60. Qe8+ {[%clk 0:00:13.1]}
60... Kf6 {[%clk 0:00:15.2]} 61. Qd8+ {[%clk 0:00:13.2]} 61... Kg6 {[%clk
0:00:16.3]} 62. Qd3+ {[%clk 0:00:14.2]} 62... Kf6 {[%clk 0:00:16.4]} 63. b6
{[%clk 0:00:14.3]} 63... Rff1 {[%clk 0:00:16.8]} 64. g4 {[%clk 0:00:15.2]} 64...
Rf2+ {[%clk 0:00:16.7]} 0-1

[Event "*** Titled Tuesday 3|2 Blitz"]
[Site "Chess.com"]
[Date "2015.08.04"]
[Round "2"]
[White "AnthonyWirig"]
[Black "samolo"]
[Result "1/2-1/2"]
[WhiteElo "2524"]
[BlackElo "2509"]
[TimeControl "180+2"]
[EndTime "11:54:09 PDT"]
[Termination "Game drawn - insufficient material"]

1. d4 {[%clk 0:03:01.9]} 1... g6 {[%clk 0:03:01.3]} 2. e4 {[%clk 0:03:02.4]}
2... Bg7 {[%clk 0:03:02.6]} 3. Nc3 {[%clk 0:03:03.1]} 3... d6 {[%clk 0:03:04.1]}
4. h4 {[%clk 0:03:03.2]} 4... h5 {[%clk 0:03:04.4]} 5. Be3 {[%clk 0:03:03.1]}
5... a6 {[%clk 0:03:04.5]} 6. a4 {[%clk 0:03:03.8]} 6... b6 {[%clk 0:03:00.9]}
7. f3 {[%clk 0:03:04.8]} 7... Bb7 {[%clk 0:03:02.1]} 8. Nh3 {[%clk 0:03:05.6]}
8... c5 {[%clk 0:02:56.6]} 9. d5 {[%clk 0:02:58.7]} 9... Nd7 {[%clk 0:02:56.5]}
10. Ng5 {[%clk 0:02:57]} 10... Ngf6 {[%clk 0:02:56.7]} 11. Be2 {[%clk
0:02:56.8]} 11... Ne5 {[%clk 0:02:56.7]} 12. O-O {[%clk 0:02:56.9]} 12... O-O
{[%clk 0:02:56.5]} 13. Qd2 {[%clk 0:02:49.3]} 13... Rb8 {[%clk 0:02:54]} 14. Nd1
{[%clk 0:02:50.2]} 14... b5 {[%clk 0:02:50.8]} 15. axb5 {[%clk 0:02:50.9]} 15...
axb5 {[%clk 0:02:52.7]} 16. Nf2 {[%clk 0:02:51.1]} 16... Nc4 {[%clk 0:02:44.4]}
17. Bxc4 {[%clk 0:02:51.9]} 17... bxc4 {[%clk 0:02:46.3]} 18. c3 {[%clk
0:02:52.6]} 18... Qb6 {[%clk 0:02:44.7]} 19. Ra2 {[%clk 0:02:50.3]} 19... Ra8
{[%clk 0:02:44.4]} 20. Rfa1 {[%clk 0:02:51.3]} 20... Rxa2 {[%clk 0:02:43.4]} 21.
Rxa2 {[%clk 0:02:53.2]} 21... Rb8 {[%clk 0:02:42.2]} 22. Qe2 {[%clk 0:02:44.3]}
22... Qb3 {[%clk 0:02:39.2]} 23. Ra3 {[%clk 0:02:44.5]} 23... Qb5 {[%clk
0:02:40.8]} 24. Ra7 {[%clk 0:02:27.3]} 24... Qb6 {[%clk 0:02:25.6]} 25. Ra2
{[%clk 0:02:27.5]} 25... Qb5 {[%clk 0:02:19]} 26. Nd1 {[%clk 0:02:22.5]} 26...
Bc8 {[%clk 0:02:15.6]} 27. Ra7 {[%clk 0:02:18.8]} 27... Nd7 {[%clk 0:02:11.5]}
28. Qc2 {[%clk 0:02:05.5]} 28... Qb6 {[%clk 0:02:11.2]} 29. Qa4 {[%clk
0:02:03.3]} 29... Qb3 {[%clk 0:02:05.3]} 30. Kh2 {[%clk 0:01:24.5]} 30... Bf6
{[%clk 0:02:00.5]} 31. f4 {[%clk 0:01:20.6]} 31... Kg7 {[%clk 0:01:41.4]} 32.
Nf3 {[%clk 0:01:10.4]} 32... Rb7 {[%clk 0:01:16.8]} 33. Qxb3 {[%clk 0:01:05.1]}
33... cxb3 {[%clk 0:01:16.8]} 34. Ra3 {[%clk 0:00:50.2]} 34... e6 {[%clk
0:01:12.6]} 35. dxe6 {[%clk 0:00:47.2]} 35... fxe6 {[%clk 0:01:14.5]} 36. Nd2
{[%clk 0:00:37.4]} 36... Bxh4 {[%clk 0:01:14.8]} 37. Rxb3 {[%clk 0:00:38.8]}
37... Rxb3 {[%clk 0:01:14.7]} 38. Nxb3 {[%clk 0:00:40.7]} 38... Bb7 {[%clk
0:01:15.3]} 39. Nd2 {[%clk 0:00:37.3]} 39... Nf6 {[%clk 0:01:11]} 40. g3 {[%clk
0:00:31.6]} 40... Ng4+ {[%clk 0:01:10.7]} 41. Kg2 {[%clk 0:00:32.2]} 41... Be7
{[%clk 0:01:09]} 42. Kf1 {[%clk 0:00:27.3]} 42... d5 {[%clk 0:01:08.1]} 43. e5
{[%clk 0:00:25]} 43... Ba6+ {[%clk 0:01:05]} 44. Kg2 {[%clk 0:00:25.6]} 44...
Bb7 {[%clk 0:01:05.5]} 45. Kh3 {[%clk 0:00:24.1]} 45... g5 {[%clk 0:01:03.2]}
46. Bg1 {[%clk 0:00:23.4]} 46... gxf4 {[%clk 0:01:03.3]} 47. gxf4 {[%clk
0:00:25.3]} 47... Kg6 {[%clk 0:01:02.6]} 48. Ne3 {[%clk 0:00:23.7]} 48... Nxe3
{[%clk 0:00:59.5]} 49. Bxe3 {[%clk 0:00:25.6]} 49... Ba6 {[%clk 0:00:57.6]} 50.
b4 {[%clk 0:00:23.6]} 50... cxb4 {[%clk 0:00:57]} 51. cxb4 {[%clk 0:00:25.5]}
51... Bxb4 {[%clk 0:00:57.4]} 52. Nf3 {[%clk 0:00:25.8]} 52... Be7 {[%clk
0:00:50.5]} 53. Nd4 {[%clk 0:00:26.2]} 53... Bc8 {[%clk 0:00:47.4]} 54. Kg3
{[%clk 0:00:27.5]} 54... Bd7 {[%clk 0:00:43.7]} 55. Kf3 {[%clk 0:00:28.4]} 55...
Bh4 {[%clk 0:00:40]} 56. Bf2 {[%clk 0:00:27.8]} 56... Bd8 {[%clk 0:00:41.6]} 57.
Be3 {[%clk 0:00:28.8]} 57... Ba5 {[%clk 0:00:41.8]} 58. Bf2 {[%clk 0:00:29.9]}
58... Bd8 {[%clk 0:00:40.5]} 59. Be3 {[%clk 0:00:31]} 59... Kf7 {[%clk
0:00:42.1]} 60. Bf2 {[%clk 0:00:32.1]} 60... Be7 {[%clk 0:00:41.5]} 61. Be3
{[%clk 0:00:33.1]} 61... Ke8 {[%clk 0:00:39.8]} 62. Bd2 {[%clk 0:00:27.8]} 62...
Bc5 {[%clk 0:00:37.4]} 63. Be3 {[%clk 0:00:28.2]} 63... Be7 {[%clk 0:00:38.1]}
64. Bf2 {[%clk 0:00:26.6]} 64... Kd8 {[%clk 0:00:38.8]} 65. f5 {[%clk
0:00:24.7]} 65... exf5 {[%clk 0:00:39.7]} 66. e6 {[%clk 0:00:24.6]} 66... Bc8
{[%clk 0:00:35.4]} 67. Kf4 {[%clk 0:00:24.2]} 67... h4 {[%clk 0:00:29.5]} 68.
Nxf5 {[%clk 0:00:18.5]} 68... h3 {[%clk 0:00:24.1]} 69. Ke5 {[%clk 0:00:15.6]}
69... h2 {[%clk 0:00:22.9]} 70. Ng3 {[%clk 0:00:16]} 70... Bb7 {[%clk
0:00:13.8]} 71. Bd4 {[%clk 0:00:14.4]} 71... Kc7 {[%clk 0:00:13.1]} 72. Nh1
{[%clk 0:00:10]} 72... Kc6 {[%clk 0:00:14.2]} 73. Kf4 {[%clk 0:00:10.7]} 73...
Kb5 {[%clk 0:00:15.1]} 74. Kg3 {[%clk 0:00:11.8]} 74... Bd6+ {[%clk 0:00:16.2]}
75. Kf2 {[%clk 0:00:12.2]} 75... Kc4 {[%clk 0:00:17.2]} 76. Bf6 {[%clk
0:00:13.8]} 76... d4 {[%clk 0:00:16.4]} 77. e7 {[%clk 0:00:14.2]} 77... Bxe7
{[%clk 0:00:17.7]} 78. Bxe7 {[%clk 0:00:16.1]} 78... Bxh1 {[%clk 0:00:18.3]} 79.
Kg3 {[%clk 0:00:17.5]} 79... d3 {[%clk 0:00:16.7]} 80. Bg5 {[%clk 0:00:18.2]}
80... Bd5 {[%clk 0:00:15.5]} 81. Kxh2 {[%clk 0:00:19.1]} 81... Kc3 {[%clk
0:00:16.7]} 82. Kg3 {[%clk 0:00:20.5]} 82... Kc2 {[%clk 0:00:17.7]} 83. Kf2
{[%clk 0:00:21.5]} 83... Kd1 {[%clk 0:00:19.6]} 84. Bf4 {[%clk 0:00:22.7]} 84...
Kc2 {[%clk 0:00:20.1]} 85. Ke1 {[%clk 0:00:23]} 85... d2+ {[%clk 0:00:21.2]} 86.
Bxd2 {[%clk 0:00:24.9]} 86... Bf3 {[%clk 0:00:22.4]} 87. Bf4 {[%clk 0:00:25.3]}
87... Be2 {[%clk 0:00:24.3]} 88. Kf2 {[%clk 0:00:27.1]} 88... Kd3 {[%clk
0:00:25.4]} 89. Bg3 {[%clk 0:00:27.5]} 89... Bf3 {[%clk 0:00:27]} 90. Bh4 {[%clk
0:00:29.4]} 90... Ke4 {[%clk 0:00:28.1]} 91. Kg3 {[%clk 0:00:31.3]} 91... Bg4
{[%clk 0:00:29.5]} 92. Bd8 {[%clk 0:00:33]} 92... Kf5 {[%clk 0:00:30.6]} 93. Bc7
{[%clk 0:00:34.9]} 93... Ke6 {[%clk 0:00:32]} 94. Bb8 {[%clk 0:00:36.8]} 94...
Bf5 {[%clk 0:00:33.5]} 95. Ba7 {[%clk 0:00:38.7]} 95... Kd7 {[%clk 0:00:35.2]}
96. Bf2 {[%clk 0:00:40.6]} 96... Kc6 {[%clk 0:00:36.8]} 97. Kf4 {[%clk
0:00:42.5]} 97... Bg4 {[%clk 0:00:38.3]} 98. Be3 {[%clk 0:00:44.4]} 98... Bf5
{[%clk 0:00:40]} 99. Ke5 {[%clk 0:00:46.3]} 99... Be4 {[%clk 0:00:41.5]} 100.
Bd4 {[%clk 0:00:48.2]} 100... Bd5 {[%clk 0:00:42.7]} 101. Ba7 {[%clk 0:00:49.9]}
101... Kb7 {[%clk 0:00:43.3]} 102. Bf2 {[%clk 0:00:51.8]} 102... Be4 {[%clk
0:00:44.6]} 103. Kxe4 {[%clk 0:00:53.3]} 1/2-1/2

[Event "*** Titled Tuesday 3|2 Blitz"]
[Site "Chess.com"]
[Date "2015.08.04"]
[Round "2"]
[White "Prolta"]
[Black "silverback96"]
[Result "0-1"]
[WhiteElo "1711"]
[BlackElo "1898"]
[TimeControl "180+2"]
[EndTime "11:54:35 PDT"]
[Termination "silverback96 won by resignation"]

1. Nf3 {[%clk 0:03:01.7]} 1... c5 {[%clk 0:02:43.5]} 2. c4 {[%clk 0:03:01.8]}
2... Nc6 {[%clk 0:02:37.9]} 3. b3 {[%clk 0:03:02.3]} 3... e5 {[%clk 0:02:37.2]}
4. d3 {[%clk 0:03:00.7]} 4... g6 {[%clk 0:02:37.3]} 5. Bb2 {[%clk 0:02:59.9]}
5... Bg7 {[%clk 0:02:34.3]} 6. Nc3 {[%clk 0:03:00.4]} 6... Nge7 {[%clk 0:02:33]}
7. e3 {[%clk 0:02:55.4]} 7... d5 {[%clk 0:02:33.1]} 8. cxd5 {[%clk 0:02:54.8]}
8... Nxd5 {[%clk 0:02:33.2]} 9. Nxd5 {[%clk 0:02:51.3]} 9... Qxd5 {[%clk
0:02:34.5]} 10. Be2 {[%clk 0:02:38.2]} 10... O-O {[%clk 0:02:31.8]} 11. O-O
{[%clk 0:02:38.5]} 11... Be6 {[%clk 0:02:27.7]} 12. Rc1 {[%clk 0:02:32]} 12...
b6 {[%clk 0:02:27.4]} 13. e4 {[%clk 0:02:26.3]} 13... Qd7 {[%clk 0:02:26.3]} 14.
a3 {[%clk 0:02:19.3]} 14... f6 {[%clk 0:02:24.9]} 15. Qc2 {[%clk 0:02:18.6]}
15... Rfd8 {[%clk 0:02:26.2]} 16. Rfd1 {[%clk 0:02:18.7]} 16... Rac8 {[%clk
0:02:27]} 17. Rb1 {[%clk 0:01:55.9]} 17... Nd4 {[%clk 0:02:26.8]} 18. Nxd4
{[%clk 0:01:55.1]} 18... cxd4 {[%clk 0:02:27.3]} 19. Qd2 {[%clk 0:01:50]} 19...
Bxb3 {[%clk 0:02:27.7]} 20. Rdc1 {[%clk 0:01:51.4]} 20... Be6 {[%clk 0:02:15.5]}
21. Rxc8 {[%clk 0:01:39.7]} 21... Rxc8 {[%clk 0:02:11.2]} 22. Rc1 {[%clk
0:01:41.1]} 22... Rxc1+ {[%clk 0:02:10.9]} 23. Qxc1 {[%clk 0:01:43]} 23... Qc8
{[%clk 0:02:11.4]} 24. f3 {[%clk 0:01:32.5]} 24... Qxc1+ {[%clk 0:02:08]} 25.
Bxc1 {[%clk 0:01:34.4]} 25... Kf8 {[%clk 0:02:09.6]} 26. Kf1 {[%clk 0:01:34.4]}
26... Ke7 {[%clk 0:02:11]} 27. Ke1 {[%clk 0:01:35.7]} 27... Kd6 {[%clk
0:02:12.7]} 28. Kd1 {[%clk 0:01:35.8]} 28... Kc5 {[%clk 0:02:14]} 29. Kc2 {[%clk
0:01:36.4]} 29... b5 {[%clk 0:02:13.9]} 30. Bd2 {[%clk 0:01:31.6]} 30... a5
{[%clk 0:02:15.1]} 31. Bxa5 {[%clk 0:01:32.2]} 31... Kc6 {[%clk 0:02:14.8]} 32.
Bb4 {[%clk 0:01:32.2]} 32... Bh6 {[%clk 0:02:15.5]} 33. Kb2 {[%clk 0:01:17]}
33... Bf4 {[%clk 0:02:15.3]} 34. h3 {[%clk 0:01:16.1]} 34... Bg3 {[%clk
0:02:14.5]} 35. Bd1 {[%clk 0:01:16.7]} 35... h5 {[%clk 0:02:02.6]} 36. Bb3
{[%clk 0:01:17.7]} 36... Bxb3 {[%clk 0:02:02.8]} 37. Kxb3 {[%clk 0:01:19.6]}
37... Kd7 {[%clk 0:02:02.2]} 38. Bd2 {[%clk 0:01:12.4]} 38... Kc6 {[%clk
0:02:01.8]} 39. Kb4 {[%clk 0:01:06.9]} 39... Bf2 {[%clk 0:02:02.1]} 40. Kb3
{[%clk 0:00:54.7]} 40... Be3 {[%clk 0:01:18.5]} 41. Bb4 {[%clk 0:00:55.7]} 41...
Kd7 {[%clk 0:01:15]} 42. Bf8 {[%clk 0:00:56.2]} 42... Ke8 {[%clk 0:01:14.4]} 43.
Bc5 {[%clk 0:00:56]} 43... Kd7 {[%clk 0:01:15.7]} 44. Kb4 {[%clk 0:00:55]} 44...
Kc6 {[%clk 0:01:16.6]} 45. Bf8 {[%clk 0:00:52.7]} 45... Bd2+ {[%clk 0:01:13]}
46. Kb3 {[%clk 0:00:51.8]} 46... Kd7 {[%clk 0:01:13.1]} 47. Bc5 {[%clk
0:00:45.7]} 47... Kc6 {[%clk 0:01:13.6]} 48. Bf8 {[%clk 0:00:47]} 48... Kd7
{[%clk 0:01:14]} 49. Bc5 {[%clk 0:00:47.6]} 49... Be1 {[%clk 0:01:15.1]} 50. Bf8
{[%clk 0:00:44.5]} 50... Ke6 {[%clk 0:01:12.7]} 51. Bc5 {[%clk 0:00:45.3]} 51...
f5 {[%clk 0:01:09.4]} 52. Bb6 {[%clk 0:00:38.4]} 52... g5 {[%clk 0:01:07.2]} 53.
Bd8 {[%clk 0:00:37.5]} 53... g4 {[%clk 0:01:05.1]} 54. fxg4 {[%clk 0:00:34.5]}
54... fxe4 {[%clk 0:00:45.9]} 55. dxe4 {[%clk 0:00:33.3]} 55... hxg4 {[%clk
0:00:46.6]} 56. hxg4 {[%clk 0:00:29.9]} 56... Kf7 {[%clk 0:00:47.3]} 57. Kc2
{[%clk 0:00:28.7]} 57... Kg6 {[%clk 0:00:43.3]} 58. Kd3 {[%clk 0:00:25.5]} 58...
Bc3 {[%clk 0:00:42]} 59. Be7 {[%clk 0:00:24.1]} 59... Bb2 {[%clk 0:00:41.5]} 60.
Kc2 {[%clk 0:00:18.9]} 60... Bc3 {[%clk 0:00:42.4]} 61. Kd3 {[%clk 0:00:18.2]}
61... Kf7 {[%clk 0:00:41.9]} 62. Bd6 {[%clk 0:00:17.5]} 62... Ke6 {[%clk
0:00:43.2]} 63. Bc5 {[%clk 0:00:18.4]} 63... Be1 {[%clk 0:00:42.7]} 64. Bb4
{[%clk 0:00:19.6]} 64... Bxb4 {[%clk 0:00:36]} 65. axb4 {[%clk 0:00:21.5]} 65...
Kf6 {[%clk 0:00:36.8]} 66. Ke2 {[%clk 0:00:20.7]} 66... Kg5 {[%clk 0:00:38.4]}
67. Kf3 {[%clk 0:00:22.6]} 67... Kh4 {[%clk 0:00:38.1]} 68. g3+ {[%clk
0:00:22.3]} 68... Kg5 {[%clk 0:00:39.3]} 69. Kf2 {[%clk 0:00:20.2]} 69... Kxg4
{[%clk 0:00:40.9]} 70. Kg2 {[%clk 0:00:21.6]} 70... Kg5 {[%clk 0:00:42.5]} 71.
Kf3 {[%clk 0:00:22.5]} 71... Kh5 {[%clk 0:00:43.7]} 72. Kg2 {[%clk 0:00:22.5]}
72... Kg4 {[%clk 0:00:45.3]} 73. Kf2 {[%clk 0:00:24]} 73... d3 {[%clk
0:00:40.3]} 74. Ke3 {[%clk 0:00:23.9]} 74... Kxg3 {[%clk 0:00:40.6]} 75. Kxd3
{[%clk 0:00:25.3]} 75... Kf3 {[%clk 0:00:42.3]} 0-1

[Event "*** Titled Tuesday 3|2 Blitz"]
[Site "Chess.com"]
[Date "2015.08.04"]
[Round "3"]
[White "GMBenjaminBok"]
[Black "Ar4uha"]
[Result "1-0"]
[WhiteElo "2442"]
[BlackElo "2385"]
[TimeControl "180+2"]
[EndTime "12:02:04 PDT"]
[Termination "GMBenjaminBok won by resignation"]

1. e4 {[%clk 0:02:57.8]} 1... d5 {[%clk 0:02:52.8]} 2. exd5 {[%clk 0:02:57.2]}
2... Nf6 {[%clk 0:02:54.2]} 3. Nf3 {[%clk 0:02:55.8]} 3... Nxd5 {[%clk
0:02:55.5]} 4. d4 {[%clk 0:02:52]} 4... g6 {[%clk 0:02:56.2]} 5. c4 {[%clk
0:02:51.9]} 5... Nb6 {[%clk 0:02:57.5]} 6. Nc3 {[%clk 0:02:50.9]} 6... Bg7
{[%clk 0:02:58.3]} 7. c5 {[%clk 0:02:51]} 7... Nd5 {[%clk 0:02:59.4]} 8. Bc4
{[%clk 0:02:52.2]} 8... c6 {[%clk 0:03:00.9]} 9. O-O {[%clk 0:02:52]} 9... O-O
{[%clk 0:03:02]} 10. Re1 {[%clk 0:02:51.5]} 10... h6 {[%clk 0:03:01.9]} 11. Qb3
{[%clk 0:02:50.2]} 11... Nxc3 {[%clk 0:02:54.7]} 12. bxc3 {[%clk 0:02:50.9]}
12... b5 {[%clk 0:02:55.4]} 13. cxb6 {[%clk 0:02:50]} 13... axb6 {[%clk
0:02:56.7]} 14. Ba3 {[%clk 0:02:46.3]} 14... Ra7 {[%clk 0:02:46.7]} 15. Ne5
{[%clk 0:02:43.6]} 15... b5 {[%clk 0:02:44]} 16. Bxf7+ {[%clk 0:02:41.1]} 16...
Kh8 {[%clk 0:02:28.9]} 17. Nxg6+ {[%clk 0:02:40.9]} 17... Kh7 {[%clk 0:02:30.5]}
18. Bxe7 {[%clk 0:02:25.3]} 18... Rxe7 {[%clk 0:02:26.1]} 19. Rxe7 {[%clk
0:02:25.3]} 19... Nd7 {[%clk 0:02:19.2]} 20. Rae1 {[%clk 0:02:20.8]} 20... Nf6
{[%clk 0:02:15.9]} 21. Nxf8+ {[%clk 0:02:15.9]} 21... Qxf8 {[%clk 0:02:16.3]}
22. Qc2+ {[%clk 0:02:15.8]} 22... Kh8 {[%clk 0:02:17.4]} 23. Re8 {[%clk
0:02:16.4]} 23... Nxe8 {[%clk 0:02:17]} 24. Rxe8 {[%clk 0:02:16.8]} 1-0

[Event "*** Titled Tuesday 3|2 Blitz"]
[Site "Chess.com"]
[Date "2015.08.04"]
[Round "3"]
[White "dretch"]
[Black "pedromartinez91"]
[Result "1-0"]
[WhiteElo "2518"]
[BlackElo "2130"]
[TimeControl "180+2"]
[EndTime "12:03:26 PDT"]
[Termination "dretch won by resignation"]

1. d4 {[%clk 0:03:01.9]} 1... d5 {[%clk 0:03:00.4]} 2. c4 {[%clk 0:03:03.2]}
2... dxc4 {[%clk 0:03:00.8]} 3. e3 {[%clk 0:03:03.9]} 3... Nf6 {[%clk
0:03:01.2]} 4. Bxc4 {[%clk 0:03:04.2]} 4... e6 {[%clk 0:03:02.3]} 5. Nf3 {[%clk
0:03:05.4]} 5... c5 {[%clk 0:03:03.3]} 6. O-O {[%clk 0:03:06]} 6... Nc6 {[%clk
0:03:04.3]} 7. Qe2 {[%clk 0:03:02.8]} 7... cxd4 {[%clk 0:03:05.2]} 8. Rd1 {[%clk
0:03:03.2]} 8... Be7 {[%clk 0:03:05.4]} 9. Nc3 {[%clk 0:03:01.1]} 9... O-O
{[%clk 0:03:05.8]} 10. Nxd4 {[%clk 0:03:00.7]} 10... Qb6 {[%clk 0:02:58.5]} 11.
Nxc6 {[%clk 0:03:00.9]} 11... Qxc6 {[%clk 0:02:59]} 12. e4 {[%clk 0:03:02.3]}
12... Nd7 {[%clk 0:02:43.4]} 13. Bf4 {[%clk 0:02:59.9]} 13... Qb6 {[%clk
0:02:31.3]} 14. Nb5 {[%clk 0:02:52.7]} 14... e5 {[%clk 0:02:26.8]} 15. Be3
{[%clk 0:02:51]} 15... Bc5 {[%clk 0:02:26.6]} 16. Rd6 {[%clk 0:02:47]} 16... Qa5
{[%clk 0:02:05.1]} 17. Rxd7 {[%clk 0:02:41.4]} 17... Bxe3 {[%clk 0:01:59.3]} 18.
Rxf7 {[%clk 0:02:38.9]} 18... Rxf7 {[%clk 0:01:40.6]} 19. Qxe3 {[%clk
0:02:35.6]} 19... Kh8 {[%clk 0:01:40.3]} 20. Bxf7 {[%clk 0:02:28.9]} 20... Qxb5
{[%clk 0:01:40.8]} 21. Rd1 {[%clk 0:02:26.5]} 21... Bg4 {[%clk 0:01:39.4]} 22.
f3 {[%clk 0:02:25.2]} 22... Bd7 {[%clk 0:01:09]} 23. Rd5 {[%clk 0:02:23.3]}
23... Qa4 {[%clk 0:01:06]} 24. Qd2 {[%clk 0:02:19.6]} 24... Rd8 {[%clk
0:01:00.8]} 25. Be6 {[%clk 0:02:10.6]} 1-0

[Event "*** Titled Tuesday 3|2 Blitz"]
[Site "Chess.com"]
[Date "2015.08.04"]
[Round "3"]
[White "PauloCesarCosta"]
[Black "Hafez_Bakr"]
[Result "1-0"]
[WhiteElo "2002"]
[BlackElo "1773"]
[TimeControl "180+2"]
[EndTime "12:03:46 PDT"]
[Termination "PauloCesarCosta won on time"]

1. Nf3 {[%clk 0:03:01.9]} 1... Nf6 {[%clk 0:02:45]} 2. c4 {[%clk 0:03:02.4]}
2... c5 {[%clk 0:02:35.7]} 3. g3 {[%clk 0:03:02]} 3... g6 {[%clk 0:02:23.8]} 4.
Bg2 {[%clk 0:03:02.6]} 4... Bg7 {[%clk 0:02:25.3]} 5. d4 {[%clk 0:03:04]} 5...
cxd4 {[%clk 0:02:20.4]} 6. Nxd4 {[%clk 0:03:04.2]} 6... Nc6 {[%clk 0:02:15.9]}
7. O-O {[%clk 0:03:03]} 7... Nxd4 {[%clk 0:02:02.8]} 8. Qxd4 {[%clk 0:03:01.8]}
8... O-O {[%clk 0:01:59.7]} 9. Nc3 {[%clk 0:03:01.9]} 9... d6 {[%clk 0:01:46.6]}
10. Qd3 {[%clk 0:03:02.7]} 10... a6 {[%clk 0:01:38.6]} 11. Bd2 {[%clk
0:03:02.1]} 11... Rb8 {[%clk 0:01:32.8]} 12. Rac1 {[%clk 0:03:02.8]} 12... Nd7
{[%clk 0:01:26.7]} 13. b3 {[%clk 0:02:55.7]} 13... Nc5 {[%clk 0:01:20.8]} 14.
Qc2 {[%clk 0:02:46.1]} 14... Bf5 {[%clk 0:00:47.8]} 15. e4 {[%clk 0:02:42.1]}
15... Be6 {[%clk 0:00:40.6]} 16. Nd5 {[%clk 0:02:40.8]} 16... Re8 {[%clk
0:00:35.7]} 17. Bc3 {[%clk 0:02:39.1]} 17... Bxd5 {[%clk 0:00:12.9]} 18. exd5
{[%clk 0:02:38.4]} 18... f6 {[%clk 0:00:06]} 19. Rfe1 {[%clk 0:02:37.1]} 1-0